bitfinex/quotes_BTCUSD_20250904
["timestamp","ask_amount","ask_price","bid_price","bid_amount"]
[1756955778100,0.18106877,111670.0,111660.0,0.1566]
[1756955778674,0.17911517,111660.0,111650.0,0.06888705]
[1756955778880,0.18413517,111660.0,111650.0,0.22444705]
[1756955779081,0.87809997,111660.0,111650.0,0.40457826]
[1756955779931,0.87809997,111660.0,111650.0,0.22544705]
[1756955780207,0.6989848,111660.0,111650.0,0.40457826]
[1756955780387,0.87809997,111660.0,111650.0,0.40357826]
[1756955780594,0.87809997,111660.0,111650.0,0.40557826]
[1756955780801,0.87809997,111660.0,111650.0,0.40757826]
[1756955785532,0.64685657,111660.0,111650.0,0.40757826]
[1756955786865,0.4677414,111660.0,111650.0,0.40757826]
[1756955787357,0.4677414,111660.0,111650.0,0.40973826]
[1756955787562,0.4627214,111660.0,111650.0,0.40973826]
[1756955787699,0.54909103,111670.0,111660.0,0.17911517]
[1756955787926,0.55105103,111670.0,111650.0,0.40757826]
[1756955788524,0.55105103,111670.0,111650.0,0.40357826]
[1756955788733,0.55088088,111670.0,111650.0,0.40357826]
[1756955788937,0.55088088,111670.0,111660.0,0.001]
[1756955789175,1.01360228,111670.0,111650.0,0.40357826]
[1756955789365,0.4627214,111660.0,111650.0,0.40357826]
[1756955789566,0.4627214,111660.0,111650.0,0.40457826]
[1756955789766,0.4627214,111660.0,111650.0,0.40573826]
[1756955790870,0.4627214,111660.0,111650.0,0.40773826]
[1756955791874,0.4627214,111660.0,111650.0,0.40973826]
[1756955792501,0.54892088,111670.0,111660.0,0.17911517]
[1756955792654,1.01360228,111670.0,111660.0,0.17911517]
[1756955794738,1.01360228,111670.0,111660.0,0.18011517]
[1756955795045,1.01360228,111670.0,111660.0,0.18111517]
[1756955795219,1.01360228,111670.0,111660.0,0.33659517]
[1756955797310,1.01360228,111670.0,111660.0,0.15748]
[1756955797515,1.01360228,111670.0,111660.0,0.15744]
[1756955798055,1.01360228,111670.0,111660.0,0.002]
[1756955800058,1.16904228,111670.0,111660.0,0.002]
[1756955800256,0.70632088,111670.0,111660.0,0.002]
[1756955800478,1.16904228,111670.0,111660.0,0.002]
[1756955803472,1.26095827,111670.0,111660.0,0.002]
[1756955805019,1.26095827,111670.0,111660.0,0.001]
[1756955805437,0.51911517,111660.0,111650.0,4.705e-05]
[1756955805640,1.13723657,111660.0,111650.0,4.705e-05]
[1756955805865,1.14225657,111660.0,111650.0,4.705e-05]
[1756955806383,1.16918157,111660.0,111650.0,4.705e-05]
[1756955806798,1.16918157,111660.0,111650.0,0.00104705]
[1756955808591,1.16918157,111660.0,111650.0,0.00204705]
[1756955808795,1.26109756,111660.0,111650.0,0.00204705]
[1756955809142,1.28465756,111660.0,111650.0,0.00204705]
[1756955809507,1.28465756,111660.0,111650.0,4.705e-05]
[1756955810060,1.12925756,111660.0,111650.0,4.705e-05]
[1756955810264,1.32459158,111660.0,111650.0,4.705e-05]
[1756955810661,0.67793018,111660.0,111650.0,4.705e-05]
[1756955810876,0.54604017,111660.0,111650.0,0.18131826]
[1756955811097,0.4896464,111660.0,111650.0,0.18131826]
[1756955811300,0.17893862,111670.0,111660.0,0.17911517]
[1756955811622,0.54586112,111670.0,111660.0,0.18125517]
[1756955812409,0.54786112,111670.0,111660.0,0.18125517]
[1756955812759,0.54886112,111670.0,111660.0,0.18125517]
[1756955813747,0.54902163,111670.0,111660.0,0.18125517]
[1756955814100,1.01174303,111670.0,111660.0,0.18125517]
[1756955814737,0.54902163,111670.0,111660.0,0.18125517]
[1756955814941,1.01174303,111670.0,111660.0,0.18125517]
[1756955815748,0.0299225,111670.0,111660.0,0.33906517]
[1756955815975,0.003,111670.0,111660.0,0.80178657]
[1756955816175,0.003,111670.0,111660.0,0.89370256]
[1756955817501,0.003,111670.0,111660.0,1.33524398]
[1756955818130,0.002,111670.0,111660.0,1.33524398]
[1756955818300,0.09634505,111700.0,111690.0,0.17906706]
[1756955818499,0.09634505,111700.0,111690.0,0.33434706]
[1756955818774,0.09634505,111700.0,111690.0,0.33901706]
[1756955820133,0.09634505,111700.0,111690.0,0.43093305]
[1756955822233,0.09634505,111700.0,111690.0,0.43193305]
[1756955823276,0.09634505,111700.0,111690.0,0.76031327]
[1756955823489,0.09634505,111700.0,111690.0,0.91551327]
[1756955824324,0.09634505,111700.0,111690.0,1.25651327]
[1756955827696,0.09634505,111700.0,111690.0,1.68341974]
[1756955830382,0.09634505,111700.0,111690.0,1.52821974]
[1756955830588,0.09634505,111700.0,111690.0,1.68333974]
[1756955830980,0.09634505,111700.0,111690.0,1.22061834]
[1756955831128,0.09634505,111700.0,111690.0,1.68333974]
[1756955831525,0.09634505,111700.0,111690.0,1.22061834]
[1756955831707,0.09634505,111700.0,111690.0,1.68333974]
[1756955834960,0.09634505,111700.0,111690.0,1.68233974]
[1756955835188,0.09634505,111700.0,111690.0,1.68133974]
[1756955835388,0.09634505,111700.0,111690.0,1.22561834]
[1756955835596,0.09634505,111700.0,111690.0,1.68833974]
[1756955835796,0.09634505,111700.0,111690.0,1.22561834]
[1756955836005,0.09634505,111700.0,111690.0,1.68833974]
[1756955837882,0.09634505,111700.0,111690.0,1.68580974]
[1756955838458,0.09634505,111700.0,111690.0,1.22308834]
[1756955838639,0.09634505,111700.0,111690.0,1.68580974]
[1756955838841,0.09634505,111700.0,111690.0,1.68833974]
[1756955839582,0.09634505,111700.0,111690.0,1.72916223]
[1756955840246,0.09634505,111700.0,111690.0,1.26391083]
[1756955840440,0.09634505,111700.0,111690.0,1.72663223]
[1756955840927,0.09634505,111700.0,111690.0,1.72916223]
[1756955841750,0.09634505,111700.0,111690.0,1.72663223]
[1756955842521,0.09634505,111700.0,111690.0,1.72916223]
[1756955842933,0.09634505,111700.0,111690.0,1.72663223]
[1756955843377,0.09634505,111700.0,111690.0,1.72916223]
[1756955845484,1e-08,111700.0,111690.0,1.77916223]
[1756955847487,1e-08,111700.0,111690.0,2.00925657]
[1756955847889,4.706e-05,111700.0,111690.0,2.00925657]
[1756955848830,4.706e-05,111700.0,111690.0,2.27295657]
[1756955851677,4.706e-05,111700.0,111690.0,2.48803657]
[1756955851881,4.706e-05,111700.0,111690.0,2.91510704]
[1756955852899,4.706e-05,111700.0,111690.0,2.56863917]
[1756955853863,4.706e-05,111700.0,111690.0,2.52781668]
[1756955854086,4.706e-05,111700.0,111690.0,2.52777668]
[1756955858368,4.706e-05,111700.0,111690.0,2.37281668]
[1756955858568,4.706e-05,111700.0,111690.0,2.52773668]
[1756955859192,4.706e-05,111700.0,111690.0,2.44713408]
[1756955859986,0.0002,111720.0,111710.0,0.569035]
[1756955860191,0.00067055,111720.0,111710.0,1.84130673]
[1756955860388,0.00575055,111720.0,111710.0,1.84346673]
[1756955860589,0.00575055,111720.0,111710.0,2.32380501]
[1756955861159,0.00575055,111720.0,111710.0,1.92480501]
[1756955861689,1e-08,111720.0,111710.0,2.08557383]
[1756955861892,1e-08,111720.0,111710.0,2.08404383]
[1756955862023,1e-08,111720.0,111710.0,2.09279438]
[1756955862229,0.00508001,111720.0,111710.0,1.93787438]
[1756955862437,0.00508001,111720.0,111710.0,1.19277864]
[1756955862660,0.00508001,111720.0,111710.0,1.68837596]
[1756955863244,0.00508001,111720.0,111710.0,1.28837596]
[1756955863425,0.00508001,111720.0,111710.0,1.28537596]
[1756955863626,0.00708001,111720.0,111710.0,1.68537596]
[1756955863833,0.00708001,111720.0,111710.0,1.68237596]
[1756955864054,0.00708001,111720.0,111710.0,1.28237596]
[1756955864254,0.00708001,111720.0,111710.0,1.28453596]
[1756955864470,0.00708001,111720.0,111710.0,1.68453596]
[1756955864905,0.00708001,111720.0,111710.0,1.87612383]
[1756955865206,0.00708001,111720.0,111710.0,2.03100383]
[1756955865408,0.00708001,111720.0,111710.0,1.33806809]
[1756955865616,0.00708001,111720.0,111710.0,2.03100383]
[1756955865817,0.00708001,111720.0,111710.0,1.33806809]
[1756955866023,0.00708001,111720.0,111710.0,2.03100383]
[1756955866248,0.00708001,111720.0,111710.0,1.18318809]
[1756955866455,0.00708001,111720.0,111710.0,1.33590809]
[1756955866663,0.00508001,111720.0,111710.0,0.59590809]
[1756955866870,0.00508001,111720.0,111710.0,0.36168981]
[1756955867079,0.35154788,111720.0,111710.0,0.36168981]
[1756955867266,0.35154788,111720.0,111710.0,0.51652981]
[1756955867475,0.72282575,111720.0,111710.0,0.16171599]
[1756955867662,0.72282575,111720.0,111710.0,0.180035]
[1756955867663,0.90184472,111720.0,111710.0,0.180035]
[1756955867805,0.72282575,111720.0,111710.0,0.336875]
[1756955868007,0.02989001,111720.0,111710.0,0.42879099]
[1756955868423,0.90184472,111720.0,111710.0,0.42579099]
[1756955868597,0.72282575,111720.0,111710.0,0.42579099]
[1756955868817,0.90184472,111720.0,111710.0,0.42579099]
[1756955869017,0.90184472,111720.0,111710.0,0.42679099]
[1756955869181,0.90184472,111720.0,111710.0,0.27195099]
[1756955869182,0.02989001,111720.0,111710.0,0.27195099]
[1756955869384,0.90184472,111720.0,111710.0,0.001]
[1756955869762,0.02989001,111720.0,111710.0,0.334875]
[1756955869953,0.72382575,111720.0,111710.0,0.334875]
[1756955870964,0.72382575,111720.0,111710.0,0.333875]
[1756955871381,0.00608001,111720.0,111710.0,0.44672981]
[1756955873055,0.00100001,111720.0,111710.0,0.79788768]
[1756955873181,0.00100001,111720.0,111710.0,0.79535768]
[1756955873811,0.00608001,111720.0,111710.0,0.44888981]
[1756955874089,0.00608001,111720.0,111710.0,0.44672981]
[1756955874285,0.00508001,111720.0,111710.0,0.44672981]
[1756955874590,1e-08,111720.0,111710.0,0.83730192]
[1756955874797,1e-08,111720.0,111710.0,0.83983192]
[1756955875215,1e-08,111720.0,111710.0,0.9176402]
[1756955875769,1e-08,111720.0,111710.0,0.9201702]
[1756955875994,1e-08,111720.0,111710.0,0.9176402]
[1756955876177,1e-08,111720.0,111710.0,1.2601702]
[1756955876335,1e-08,111720.0,111710.0,1.68917182]
[1756955876741,1e-08,111720.0,111710.0,1.57988588]
[1756955876940,1e-08,111720.0,111710.0,1.23341801]
[1756955877356,1e-08,111720.0,111710.0,1.23241801]
[1756955877564,1e-08,111720.0,111710.0,1.63341801]
[1756955878080,1e-08,111720.0,111710.0,1.97988588]
[1756955878287,0.0002,111730.0,111720.0,1.28289353]
[1756955878450,0.0002,111730.0,111720.0,1.71072228]
[1756955878645,0.0002,111730.0,111720.0,1.71288228]
[1756955879229,0.0002,111730.0,111720.0,2.11288228]
[1756955879433,0.0002,111730.0,111720.0,2.11646818]
[1756955879834,0.0002,111730.0,111720.0,2.12099818]
[1756955880198,0.0002,111730.0,111720.0,1.42553244]
[1756955880370,0.00528,111730.0,111720.0,1.77200031]
[1756955880561,0.00528,111730.0,111720.0,0.95084772]
[1756955880758,0.00528,111730.0,111720.0,0.83853496]
[1756955881122,0.00528,111730.0,111720.0,0.41995772]
[1756955881293,0.35174787,111730.0,111720.0,0.34073496]
[1756955881502,0.35174787,111730.0,111720.0,0.49649496]
[1756955882408,0.35174787,111730.0,111720.0,0.49549496]
[1756955882624,0.00528,111730.0,111720.0,0.49665496]
[1756955882825,0.00528,111730.0,111720.0,0.86406165]
[1756955883031,0.0002,111730.0,111720.0,0.94428441]
[1756955883840,0.0002,111730.0,111720.0,1.68328228]
[1756955884064,0.0002,111730.0,111720.0,1.60305952]
[1756955884491,0.0002,111730.0,111720.0,0.91012378]
[1756955884640,0.0002,111730.0,111720.0,1.60305952]
[1756955885239,0.00528,111730.0,111720.0,0.70067378]
[1756955885468,0.00528,111730.0,111720.0,0.9356399]
[1756955885695,0.00528,111730.0,111720.0,0.7808799]
[1756955885898,0.00528,111730.0,111720.0,0.9366399]
[1756955886111,0.00528,111730.0,111720.0,0.9387999]
[1756955886322,0.00528,111730.0,111720.0,0.9366399]
[1756955886582,0.00528,111730.0,111720.0,0.9376399]
[1756955886793,0.00528,111730.0,111720.0,0.9397999]
[1756955887033,0.0002,111730.0,111720.0,1.28626777]
[1756955887533,0.0002,111730.0,111720.0,1.33626777]
[1756955887670,0.0002,111730.0,111720.0,0.9897999]
[1756955887877,0.0002,111730.0,111720.0,1.33626777]
[1756955888248,0.00225,111730.0,111720.0,1.28626777]
[1756955888451,0.00528,111730.0,111720.0,1.28626777]
[1756955889310,0.00528,111730.0,111720.0,0.9397999]
[1756955889488,0.0002,111730.0,111720.0,0.9397999]
[1756955890104,0.0002,111730.0,111720.0,1.63273564]
[1756955890273,0.0002,111730.0,111720.0,1.89896564]
[1756955890476,0.0002,111730.0,111720.0,1.81875952]
[1756955891892,0.0002,111730.0,111720.0,1.12582378]
[1756955892100,0.0002,111730.0,111720.0,1.81875952]
[1756955892308,0.0002,111730.0,111720.0,1.12329378]
[1756955892507,0.0002,111730.0,111720.0,1.46976165]
[1756955892910,0.0002,111730.0,111720.0,1.31500165]
[1756955893112,0.0002,111730.0,111720.0,1.46972165]
[1756955894164,0.00225,111730.0,111720.0,1.12325378]
[1756955894362,0.00534,111730.0,111720.0,1.46752165]
[1756955894845,0.00534,111730.0,111720.0,1.46959165]
[1756955895484,0.00225,111730.0,111720.0,1.46959165]
[1756955895840,0.00534,111730.0,111720.0,0.94543496]
[1756955895996,0.00534,111730.0,111720.0,1.18024897]
[1756955896225,0.00534,111730.0,111720.0,0.93748779]
[1756955896433,0.35180787,111730.0,111720.0,0.76186897]
[1756955896643,0.35180787,111730.0,111720.0,0.57654897]
[1756955896851,0.35180787,111730.0,111720.0,0.51735378]
[1756955897716,0.35180787,111730.0,111720.0,0.51635378]
[1756955899036,0.35180787,111730.0,111720.0,0.51535378]
[1756955900236,0.35180787,111730.0,111720.0,0.59548779]
[1756955902761,0.00534,111730.0,111720.0,0.59548779]
[1756955903411,0.35180787,111730.0,111720.0,0.44080779]
[1756955903588,0.35180787,111730.0,111720.0,0.59544779]
[1756955904373,0.00534,111730.0,111720.0,0.59544779]
[1756955904769,0.35180787,111730.0,111720.0,0.59544779]
[1756955905279,0.35180787,111730.0,111720.0,0.49437496]
[1756955907193,0.00534,111730.0,111720.0,0.49437496]
[1756955907382,0.35180787,111730.0,111720.0,0.49437496]
[1756955908426,0.00534,111730.0,111720.0,0.49437496]
[1756955908630,0.00534,111730.0,111720.0,0.51738378]
[1756955908882,0.00534,111730.0,111720.0,0.59751779]
[1756955909059,0.00225,111730.0,111720.0,0.59751779]
[1756955909255,0.0002,111730.0,111720.0,0.59751779]
[1756955911157,0.00225,111730.0,111720.0,0.59751779]
[1756955911361,0.00534,111730.0,111720.0,0.59751779]
[1756955911950,0.00534,111730.0,111720.0,0.59544779]
[1756955915924,0.3402,111750.0,111740.0,0.17898693]
[1756955916128,0.80416918,111750.0,111740.0,0.33358693]
[1756955916333,0.80431029,111750.0,111740.0,0.33358693]
[1756955917045,0.80531029,111750.0,111740.0,0.33358693]
[1756955917220,0.34339111,111750.0,111740.0,0.33358693]
[1756955917600,0.80531029,111750.0,111740.0,0.33358693]
[1756955917827,0.80840029,111750.0,111740.0,0.33358693]
[1756955918414,0.81140029,111750.0,111740.0,0.33358693]
[1756955919207,0.34948111,111750.0,111740.0,0.33358693]
[1756955919379,0.81140029,111750.0,111740.0,0.33358693]
[1756955920549,0.9903712,111750.0,111740.0,0.33358693]
[1756955923346,0.9903712,111750.0,111740.0,0.17898693]
[1756955923551,0.9903712,111750.0,111740.0,0.33350693]
[1756955925251,0.52845202,111750.0,111740.0,0.33350693]
[1756955925462,0.9903712,111750.0,111740.0,0.33350693]
[1756955926222,0.9903712,111750.0,111730.0,0.17900295]
[1756955926425,0.46191918,111740.0,111730.0,0.27091894]
[1756955926733,0.46191918,111740.0,111730.0,0.42543894]
[1756955926917,0.46389918,111740.0,111730.0,0.42739894]
[1756955927587,0.46389918,111740.0,111730.0,0.42543894]
[1756955927798,0.46389918,111740.0,111730.0,0.42739894]
[1756955928339,0.46489918,111740.0,111730.0,0.42739894]
[1756955929518,0.00298,111740.0,111730.0,0.42739894]
[1756955929719,0.46489918,111740.0,111730.0,0.43041894]
[1756955929941,0.46589918,111740.0,111730.0,0.43041894]
[1756955930147,0.46589918,111740.0,111730.0,0.27091894]
[1756955930281,0.46589918,111740.0,111730.0,0.42735894]
[1756955930728,0.46589918,111740.0,111730.0,0.43037894]
[1756955936979,0.00398,111740.0,111730.0,0.43037894]
[1756955937174,0.46589918,111740.0,111730.0,0.43037894]
[1756955938697,0.00398,111740.0,111730.0,0.43037894]
[1756955938899,0.46589918,111740.0,111730.0,0.43037894]
[1756955939240,0.00398,111740.0,111730.0,0.43037894]
[1756955939481,0.46589918,111740.0,111730.0,0.43037894]
[1756955940312,0.64803611,111740.0,111730.0,0.15444]
[1756955940530,0.64803611,111740.0,111730.0,0.33344295]
[1756955941219,0.46904918,111740.0,111730.0,0.33344295]
[1756955942520,0.64803611,111740.0,111730.0,0.33344295]
[1756955943177,0.00398,111740.0,111730.0,0.33540295]
[1756955943355,0.46904918,111740.0,111730.0,0.33344295]
[1756955943556,0.00713,111740.0,111730.0,0.33344295]
[1756955943758,0.46904918,111740.0,111730.0,0.33344295]
[1756955943955,0.46391918,111740.0,111730.0,0.33842295]
[1756955944796,0.46589918,111740.0,111730.0,0.33842295]
[1756955944997,0.46391918,111740.0,111730.0,0.33842295]
[1756955945702,0.46589918,111740.0,111730.0,0.33842295]
[1756955946791,0.46391918,111740.0,111730.0,0.33842295]
[1756955946996,0.00398,111740.0,111730.0,0.40722295]
[1756955947203,0.46589918,111740.0,111730.0,0.40722295]
[1756955947605,0.00398,111740.0,111730.0,0.40722295]
[1756955947883,0.002,111740.0,111730.0,0.49913894]
[1756955950670,0.46391918,111740.0,111730.0,0.49913894]
[1756955953272,0.002,111740.0,111730.0,0.49913894]
[1756955953483,0.46391918,111740.0,111730.0,0.49913894]
[1756955953692,0.002,111740.0,111730.0,0.49913894]
[1756955954292,0.46391918,111740.0,111730.0,0.49913894]
[1756955955370,0.002,111740.0,111730.0,0.49913894]
[1756955955536,0.46391918,111740.0,111730.0,0.49913894]
[1756955955868,0.002,111740.0,111730.0,0.49913894]
[1756955956084,0.46391918,111740.0,111730.0,0.49913894]
[1756955956287,0.002,111740.0,111730.0,0.49913894]
[1756955958727,0.002,111740.0,111730.0,0.57927295]
[1756955959042,0.46391918,111740.0,111730.0,0.57927295]
[1756955959708,0.002,111740.0,111730.0,0.57927295]
[1756955965293,0.002,111740.0,111730.0,1.06213095]
[1756955965513,0.002,111740.0,111730.0,1.0943097]
[1756955965720,0.002,111740.0,111730.0,1.4943097]
[1756955966383,0.002,111740.0,111730.0,1.8343097]
[1756955966860,0.001,111740.0,111730.0,1.8343097]
[1756955967082,0.00034111,111750.0,111740.0,0.17898693]
[1756955967294,0.00034111,111750.0,111740.0,0.27314025]
[1756955967474,0.00034111,111750.0,111740.0,0.81842354]
[1756955968091,0.46126029,111770.0,111760.0,0.1789549]
[1756955968298,0.35285732,111780.0,111770.0,0.17893889]
[1756955968505,0.8147765,111780.0,111770.0,0.17893889]
[1756955968927,0.35496732,111780.0,111770.0,0.17893889]
[1756955969131,0.8168865,111780.0,111770.0,0.17893889]
[1756955969574,1.0474727,111780.0,111770.0,0.17893889]
[1756955969789,0.35496732,111780.0,111770.0,0.17893889]
[1756955970414,1.0474727,111780.0,111770.0,0.17893889]
[1756955970825,1.0504727,111780.0,111770.0,0.17893889]
[1756955971291,0.00910652,111780.0,111770.0,0.17893889]
[1756955971505,0.00910652,111780.0,111770.0,0.18117562]
[1756955971709,0.35635921,111780.0,111770.0,0.18117562]
[1756955972130,0.01010652,111780.0,111770.0,0.18117562]
[1756955972342,0.35635921,111780.0,111770.0,0.18117562]
[1756955972938,0.01010652,111780.0,111770.0,0.18117562]
[1756955973138,0.7026119,111780.0,111770.0,0.18117562]
[1756955973994,0.00707652,111780.0,111770.0,0.18332562]
[1756955974200,0.01010652,111780.0,111770.0,0.17893889]
[1756955974487,0.71142642,111780.0,111770.0,0.17893889]
[1756955974679,0.19784392,111780.0,111770.0,0.33309889]
[1756955974943,0.8903493,111780.0,111770.0,0.17893889]
[1756955975152,1.26062199,111780.0,111770.0,0.15472]
[1756955975365,0.9143693,111780.0,111770.0,0.15472]
[1756955975583,0.94126281,111780.0,111770.0,0.33365889]
[1756955975796,0.76233993,111780.0,111770.0,0.33365889]
[1756955976015,0.94126281,111780.0,111770.0,0.33365889]
[1756955977324,0.72647541,111780.0,111770.0,0.33580889]
[1756955977559,0.72647541,111780.0,111770.0,0.33889889]
[1756955977780,0.72647541,111780.0,111770.0,0.33580889]
[1756955978372,0.03397003,111780.0,111770.0,0.33580889]
[1756955978622,0.72647541,111780.0,111770.0,0.33580889]
[1756955978874,0.72647541,111780.0,111770.0,0.33365889]
[1756955979097,0.38022272,111780.0,111770.0,0.42755488]
[1756955979323,0.0042,111780.0,111770.0,0.43070488]
[1756955979763,0.35045269,111780.0,111770.0,0.43070488]
[1756955980936,0.0042,111780.0,111770.0,0.79789639]
[1756955981536,0.0042,111780.0,111770.0,0.4516437]
[1756955981844,0.0042,111780.0,111770.0,0.79789639]
[1756955982089,0.0012,111780.0,111770.0,0.79789639]
[1756955982306,0.0012,111780.0,111770.0,0.4516437]
[1756955982467,0.0012,111780.0,111770.0,0.79789639]
[1756955982661,0.0002,111780.0,111770.0,0.79789639]
[1756955982863,0.0002,111780.0,111770.0,1.13789639]
[1756955983071,0.0002,111780.0,111770.0,1.24514246]
[1756955984275,1e-08,111780.0,111770.0,1.85639515]
[1756955984479,1e-08,111780.0,111770.0,1.82603371]
[1756955984733,1e-08,111780.0,111770.0,1.77603371]
[1756955984939,1e-08,111780.0,111770.0,1.08352833]
[1756955985161,1e-08,111780.0,111770.0,1.77603371]
[1756955985366,1e-08,111780.0,111770.0,1.85600953]
[1756955985648,1e-08,111790.0,111780.0,0.2498617]
[1756955985847,1e-08,111790.0,111780.0,1.46366158]
[1756955986111,1e-08,111790.0,111780.0,0.7731362]
[1756955986287,1e-08,111800.0,111790.0,0.58984569]
[1756955986483,1e-08,111800.0,111790.0,0.90851168]
[1756955986842,1e-08,111800.0,111790.0,0.91407546]
[1756955987023,1e-08,111800.0,111790.0,1.31407546]
[1756955987235,0.0002,111820.0,111810.0,0.53981369]
[1756955987444,0.0002,111820.0,111810.0,1.13370237]
[1756955987651,0.0002,111820.0,111810.0,1.17938942]
[1756955987863,0.0002,111820.0,111810.0,0.83313673]
[1756955988078,0.00223,111820.0,111810.0,0.67741673]
[1756955988288,0.0002,111820.0,111810.0,0.83313673]
[1756955988427,0.34848269,111820.0,111810.0,0.67587004]
[1756955988843,0.34848269,111820.0,111810.0,0.83353004]
[1756955989046,0.0002,111820.0,111810.0,1.19177812]
[1756955989838,0.0002,111820.0,111810.0,0.84552543]
[1756955990036,0.0002,111820.0,111810.0,1.19177812]
[1756955990402,0.0002,111820.0,111810.0,1.19277812]
[1756955991092,0.0002,111820.0,111810.0,1.18393273]
[1756955992577,0.0002,111820.0,111810.0,1.53018542]
[1756955993184,1e-08,111820.0,111810.0,1.58018542]
[1756955993365,1e-08,111830.0,111820.0,0.5397977]
[1756955993587,0.00014104,111830.0,111820.0,0.91854369]
[1756955993765,0.00014104,111830.0,111820.0,0.92052369]
[1756955994083,0.00014104,111830.0,111820.0,1.61302907]
[1756955994286,0.00014104,111830.0,111820.0,1.32052369]
[1756955994468,0.00014104,111830.0,111820.0,1.82369638]
[1756955995056,0.00014104,111830.0,111820.0,2.16994907]
[1756955995498,0.00014104,111830.0,111820.0,1.47744369]
[1756955995730,0.00014104,111830.0,111820.0,2.16994907]
[1756955995901,0.00114104,111830.0,111820.0,2.16994907]
[1756955996459,0.00114104,111830.0,111820.0,1.47744369]
[1756955996813,0.00114104,111830.0,111820.0,2.16994907]
[1756955997668,0.00114104,111830.0,111820.0,2.19682086]
[1756956000236,0.00114104,111830.0,111820.0,1.50431548]
[1756956000648,0.00114104,111830.0,111820.0,1.85056817]
[1756956001058,0.00114104,111830.0,111820.0,2.19682086]
[1756956001261,0.00114104,111830.0,111820.0,1.50431548]
[1756956001464,0.00114104,111830.0,111820.0,2.19682086]
[1756956003643,0.00114104,111830.0,111820.0,1.50431548]
[1756956003925,0.00114104,111830.0,111820.0,2.19682086]
[1756956004789,0.00114104,111830.0,111820.0,1.34739548]
[1756956004976,0.00317104,111830.0,111820.0,1.32132666]
[1756956005230,0.35239373,111830.0,111820.0,1.07816666]
[1756956005431,0.00614104,111830.0,111820.0,1.07816666]
[1756956005568,0.00614104,111830.0,111820.0,1.09910548]
[1756956007202,0.35239373,111830.0,111820.0,0.88418548]
[1756956007451,0.00614104,111830.0,111820.0,0.51731369]
[1756956007597,0.35239373,111830.0,111820.0,0.51731369]
[1756956008513,0.00614104,111830.0,111820.0,0.51731369]
[1756956008883,0.35239373,111830.0,111820.0,0.51731369]
[1756956009118,0.35239373,111830.0,111820.0,0.36047369]
[1756956009334,0.35239373,111830.0,111820.0,0.51735369]
[1756956009545,0.35239373,111830.0,111820.0,0.36047369]
[1756956009745,0.69864642,111830.0,111820.0,0.51731369]
[1756956010569,0.69864642,111830.0,111820.0,0.49637487]
[1756956010924,0.69864642,111830.0,111820.0,0.33953487]
[1756956011127,0.69864642,111830.0,111820.0,0.49588903]
[1756956011948,0.69864642,111830.0,111820.0,0.49596903]
[1756956012377,0.72148642,111830.0,111820.0,0.49596903]
[1756956012979,0.02898104,111830.0,111820.0,0.49596903]
[1756956013227,0.72985164,111830.0,111820.0,0.49596903]
[1756956015489,0.03734626,111830.0,111820.0,0.49596903]
[1756956015687,0.72985164,111830.0,111820.0,0.49596903]
[1756956016534,0.72148642,111830.0,111820.0,0.49596903]
[1756956016957,0.02898104,111830.0,111820.0,0.49596903]
[1756956017193,0.72148642,111830.0,111820.0,0.49596903]
[1756956017383,0.7483663,111830.0,111820.0,0.49596903]
[1756956018929,0.05586092,111830.0,111820.0,0.49596903]
[1756956019054,0.7483663,111830.0,111820.0,0.49596903]
[1756956020060,0.7483663,111830.0,111820.0,0.33908903]
[1756956020263,0.92720918,111830.0,111820.0,0.49560903]
[1756956020467,0.92720918,111830.0,111820.0,0.49552903]
[1756956020908,0.2347038,111830.0,111820.0,0.06876]
[1756956021110,1.27346187,111830.0,111820.0,0.22516]
[1756956021323,0.17885888,111820.0,111810.0,0.1788736]
[1756956021527,1.22270695,111820.0,111810.0,0.33523487]
[1756956021961,1.58959066,111820.0,111810.0,0.15636]
[1756956022302,1.59059066,111820.0,111810.0,0.15636]
[1756956023008,1.59459066,111820.0,111810.0,0.15636]
[1756956024959,1.59459066,111820.0,111810.0,0.33523487]
[1756956025176,1.24833797,111820.0,111810.0,0.33523487]
[1756956025375,1.59459066,111820.0,111810.0,0.33523487]
[1756956025951,1.59459066,111820.0,111810.0,0.15636]
[1756956028234,0.55583259,111820.0,111810.0,0.33523487]
[1756956028448,1.24833797,111820.0,111810.0,0.33523487]
[1756956028750,1.59459066,111820.0,111810.0,0.15636]
[1756956029057,0.17887487,111810.0,111800.0,0.24761087]
[1756956029225,0.18396487,111810.0,111800.0,0.22468]
[1756956029399,0.87647025,111810.0,111800.0,0.22468]
[1756956029773,0.9033554,111810.0,111800.0,0.22468]
[1756956031211,0.90299947,111810.0,111800.0,0.22468]
[1756956031426,0.6740139,111810.0,111800.0,0.22468]
[1756956031632,0.6750139,111810.0,111800.0,0.22468]
[1756956033653,0.21349409,111810.0,111800.0,0.22468]
[1756956033855,0.6750139,111810.0,111800.0,0.22468]
[1756956036950,0.21349409,111810.0,111800.0,0.22468]
[1756956037155,0.21040409,111810.0,111800.0,0.40569087]
[1756956037317,0.6750139,111810.0,111800.0,0.22468]
[1756956037863,0.21349409,111810.0,111800.0,0.22468]
[1756956038064,0.6750139,111810.0,111800.0,0.22468]
[1756956041710,0.6750139,111810.0,111800.0,0.40357087]
[1756956042546,0.21040409,111810.0,111800.0,0.40573087]
[1756956043171,0.6749839,111810.0,111800.0,0.22468]
[1756956044005,0.21040409,111810.0,111800.0,0.22684]
[1756956044333,0.21040409,111810.0,111800.0,0.40573087]
[1756956044525,0.6719239,111810.0,111800.0,0.40573087]
[1756956045029,0.6719239,111810.0,111800.0,0.22684]
[1756956045230,0.6749839,111810.0,111800.0,0.22468]
[1756956051158,0.6749839,111810.0,111800.0,0.40357087]
[1756956051361,0.6719239,111810.0,111800.0,0.40573087]
[1756956051595,0.6719239,111810.0,111800.0,0.40878087]
[1756956053588,0.20840409,111810.0,111800.0,0.40878087]
[1756956053797,0.67027983,111810.0,111800.0,0.40878087]
[1756956054217,0.67242983,111810.0,111800.0,0.40878087]
[1756956054424,0.21091002,111810.0,111800.0,0.40878087]
[1756956054810,0.67242983,111810.0,111800.0,0.40878087]
[1756956055116,0.67242983,111810.0,111800.0,0.40357087]
[1756956055508,0.67548983,111810.0,111800.0,0.22468]
[1756956055931,0.67548983,111810.0,111800.0,0.40357087]
[1756956056139,0.67242983,111810.0,111800.0,0.40357087]
[1756956057360,0.67242983,111810.0,111800.0,0.40573087]
[1756956059190,0.21091002,111810.0,111800.0,0.40573087]
[1756956059434,0.67242983,111810.0,111800.0,0.40573087]
[1756956060741,0.21091002,111810.0,111800.0,0.40573087]
[1756956061418,0.67242983,111810.0,111800.0,0.40573087]
[1756956062076,0.21091002,111810.0,111800.0,0.40573087]
[1756956062282,0.67242983,111810.0,111800.0,0.40573087]
[1756956062521,0.67242983,111810.0,111800.0,0.22684]
[1756956062759,0.67242983,111810.0,111800.0,0.40573087]